[Event "Titled Tuesday Blitz May 10 Late 2022"]
[White "Plotnikov, Pavel"]
[Black "Pranav, V"]
[WhiteFideId "4170342"]
[BlackFideId "25060783"]
[WhiteElo "2298"]
[BlackElo "2349"]
[Result "1-0"]
[Round "02"]
[TimeControl "180+1"]
[Date "2022.05.11"]
[WhiteClock "0:00:24"]
[BlackClock "0:01:18"]

1. e4 {[%clk 0:03:00]}  e5 {[%clk 0:03:00]} 2. Nf3 {[%clk 0:03:00]}  Nf6 {[%clk 0:02:59]} 3. Nc3 {[%clk 0:02:59]}  Nc6 {[%clk 0:03:00]} 4. Be2 {[%clk 0:02:59]}  g6 {[%clk 0:02:59]} 5. d4 {[%clk 0:02:57]}  exd4 {[%clk 0:02:59]} 6. Nxd4 {[%clk 0:02:57]}  Bg7 {[%clk 0:03:00]} 7. Be3 {[%clk 0:02:57]}  O-O {[%clk 0:03:00]} 8. O-O {[%clk 0:02:56]}  d6 {[%clk 0:03:00]} 9. Nxc6 {[%clk 0:02:45]}  bxc6 {[%clk 0:03:01]} 10. f3 {[%clk 0:02:30]}  Re8 {[%clk 0:02:57]} 11. Qd2 {[%clk 0:02:28]}  a5 {[%clk 0:02:53]} 12. Rad1 {[%clk 0:02:26]}  Be6 {[%clk 0:02:48]} 13. Bh6 {[%clk 0:02:18]}  Qb8 {[%clk 0:02:47]} 14. Bxg7 {[%clk 0:02:16]}  Kxg7 {[%clk 0:02:47]} 15. b3 {[%clk 0:02:15]}  Qb4 {[%clk 0:02:43]} 16. a4 {[%clk 0:02:11]}  Rad8 {[%clk 0:02:39]} 17. Bd3 {[%clk 0:01:55]}  d5 {[%clk 0:02:35]} 18. Qe1 {[%clk 0:01:30]}  Nd7 {[%clk 0:02:28]} 19. Ne2 {[%clk 0:01:18]}  Qb6+ {[%clk 0:02:24]} 20. Qf2 {[%clk 0:01:16]}  Nc5 {[%clk 0:02:23]} 21. Nd4 {[%clk 0:01:11]}  Kg8 {[%clk 0:02:14]} 22. e5 {[%clk 0:01:05]}  Bc8 {[%clk 0:02:11]} 23. f4 {[%clk 0:01:03]}  Nxd3 {[%clk 0:02:10]} 24. Rxd3 {[%clk 0:01:00]}  Ba6 {[%clk 0:02:07]} 25. f5 {[%clk 0:00:53]}  Bxd3 {[%clk 0:02:07]} 26. cxd3 {[%clk 0:00:50]}  Rf8 {[%clk 0:02:02]} 27. f6 {[%clk 0:00:46]}  c5 {[%clk 0:01:48]} 28. Qf4 {[%clk 0:00:41]}  Kh8 {[%clk 0:01:40]} 29. Qh6 {[%clk 0:00:31]}  Rg8 {[%clk 0:01:40]} 30. Rf3 {[%clk 0:00:30]}  Qb4 {[%clk 0:01:18]} 31. Qxh7+ {[%clk 0:00:24]}  Kxh7 {[%clk 0:01:18]} 32. Rh3# {[%clk 0:00:24]} 1-0


[Site "https://www.chess.com"]

[Event "Titled Tuesday Blitz May 10 Late 2022"]
[White "Postny, Evgeny"]
[Black "Dounis, Alexandros"]
[WhiteFideId "2804344"]
[BlackFideId "4213238"]
[WhiteElo "2500"]
[BlackElo "2204"]
[Result "0-1"]
[Round "02"]
[TimeControl "180+1"]
[Date "2022.05.10"]
[WhiteClock "0:00:02"]
[BlackClock "0:00:13"]

1. e4 {[%clk 0:03:00]}  e5 {[%clk 0:02:59]} 2. Nf3 {[%clk 0:03:00]}  Nc6 {[%clk 0:02:58]} 3. Bb5 {[%clk 0:03:00]}  a6 {[%clk 0:02:58]} 4. Ba4 {[%clk 0:03:01]}  g6 {[%clk 0:02:59]} 5. d3 {[%clk 0:02:56]}  Bg7 {[%clk 0:02:58]} 6. Nc3 {[%clk 0:02:56]}  Nf6 {[%clk 0:02:54]} 7. h3 {[%clk 0:02:45]}  O-O {[%clk 0:02:51]} 8. Bg5 {[%clk 0:02:44]}  h6 {[%clk 0:02:49]} 9. Be3 {[%clk 0:02:43]}  d6 {[%clk 0:02:45]} 10. Qd2 {[%clk 0:02:41]}  Kh7 {[%clk 0:02:44]} 11. O-O-O {[%clk 0:02:41]}  b5 {[%clk 0:02:44]} 12. Bb3 {[%clk 0:02:41]}  Na5 {[%clk 0:02:41]} 13. g4 {[%clk 0:02:37]}  Nd7 {[%clk 0:02:33]} 14. h4 {[%clk 0:02:21]}  Nxb3+ {[%clk 0:02:33]} 15. axb3 {[%clk 0:02:20]}  Nc5 {[%clk 0:02:12]} 16. Rdg1 {[%clk 0:01:58]}  a5 {[%clk 0:02:04]} 17. h5 {[%clk 0:01:53]}  g5 {[%clk 0:01:53]} 18. Nxg5+ {[%clk 0:01:43]}  hxg5 {[%clk 0:01:51]} 19. h6 {[%clk 0:01:43]}  Bf6 {[%clk 0:01:47]} 20. Rh5 {[%clk 0:01:33]}  Ne6 {[%clk 0:01:40]} 21. Nxb5 {[%clk 0:01:30]}  a4 {[%clk 0:01:33]} 22. b4 {[%clk 0:01:29]}  c6 {[%clk 0:01:26]} 23. Nc3 {[%clk 0:01:27]}  a3 {[%clk 0:01:24]} 24. b3 {[%clk 0:01:22]}  d5 {[%clk 0:01:15]} 25. Na2 {[%clk 0:01:21]}  d4 {[%clk 0:01:12]} 26. Rf1 {[%clk 0:01:16]}  dxe3 {[%clk 0:01:05]} 27. fxe3 {[%clk 0:01:16]}  Be7 {[%clk 0:01:02]} 28. Qc3 {[%clk 0:01:14]}  f6 {[%clk 0:00:59]} 29. Qxc6 {[%clk 0:01:08]}  Ra6 {[%clk 0:00:57]} 30. Qc4 {[%clk 0:01:05]}  Qc7 {[%clk 0:00:54]} 31. b5 {[%clk 0:00:48]}  Rb6 {[%clk 0:00:49]} 32. Rhh1 {[%clk 0:00:41]}  Bd7 {[%clk 0:00:44]} 33. Qxc7 {[%clk 0:00:35]}  Nxc7 {[%clk 0:00:44]} 34. c4 {[%clk 0:00:36]}  Bc5 {[%clk 0:00:40]} 35. Kd2 {[%clk 0:00:35]}  Nxb5 {[%clk 0:00:35]} 36. cxb5 {[%clk 0:00:35]}  Rxb5 {[%clk 0:00:36]} 37. Rc1 {[%clk 0:00:32]}  Be6 {[%clk 0:00:30]} 38. Rc3 {[%clk 0:00:19]}  Bxb3 {[%clk 0:00:23]} 39. Rb1 {[%clk 0:00:18]}  Rfb8 {[%clk 0:00:22]} 40. d4 {[%clk 0:00:05]}  exd4 {[%clk 0:00:21]} 41. exd4 {[%clk 0:00:06]}  Bxd4 {[%clk 0:00:19]} 42. Rc7+ {[%clk 0:00:06]}  Kxh6 {[%clk 0:00:17]} 43. Rh1+ {[%clk 0:00:05]}  Kg6 {[%clk 0:00:18]} 44. Rhh7 {[%clk 0:00:05]}  Rg8 {[%clk 0:00:15]} 45. Nc1 {[%clk 0:00:03]}  a2 {[%clk 0:00:14]} 46. Nxb3 {[%clk 0:00:02]}  Rxb3 {[%clk 0:00:13]} 0-1


[Site "https://www.chess.com"]

[Event "Titled Tuesday Blitz May 10 Late 2022"]
[White "Prieto Aranguren, Alain"]
[Black "Prohorov, Olexandr"]
[WhiteFideId "2268906"]
[BlackFideId "14105578"]
[WhiteElo "2235"]
[BlackElo "1993"]
[Result "0-1"]
[Round "02"]
[TimeControl "180+1"]
[Date "2022.05.11"]
[WhiteClock "0:01:22"]
[BlackClock "0:00:43"]

1. e3 {[%clk 0:02:53]}  c5 {[%clk 0:02:56]} 2. d4 {[%clk 0:02:53]}  e6 {[%clk 0:02:53]} 3. Nf3 {[%clk 0:02:53]}  Nf6 {[%clk 0:02:53]} 4. Bd3 {[%clk 0:02:53]}  b6 {[%clk 0:02:53]} 5. O-O {[%clk 0:02:52]}  Bb7 {[%clk 0:02:53]} 6. c3 {[%clk 0:02:53]}  Be7 {[%clk 0:02:54]} 7. Qe2 {[%clk 0:02:53]}  O-O {[%clk 0:02:53]} 8. e4 {[%clk 0:02:52]}  cxd4 {[%clk 0:02:54]} 9. cxd4 {[%clk 0:02:52]}  d6 {[%clk 0:02:50]} 10. Nc3 {[%clk 0:02:52]}  Nc6 {[%clk 0:02:45]} 11. Bf4 {[%clk 0:02:49]}  Nb4 {[%clk 0:02:32]} 12. Bb1 {[%clk 0:02:48]}  Ba6 {[%clk 0:02:29]} 13. Qe1 {[%clk 0:02:45]}  Bxf1 {[%clk 0:02:27]} 14. Qxf1 {[%clk 0:02:44]}  Rc8 {[%clk 0:02:25]} 15. Qb5 {[%clk 0:02:39]}  d5 {[%clk 0:02:22]} 16. e5 {[%clk 0:02:38]}  Nd7 {[%clk 0:02:14]} 17. a3 {[%clk 0:02:34]}  Nc6 {[%clk 0:02:13]} 18. Qd3 {[%clk 0:02:33]}  g6 {[%clk 0:02:09]} 19. Bc2 {[%clk 0:02:22]}  Na5 {[%clk 0:02:03]} 20. Re1 {[%clk 0:02:16]}  Nc4 {[%clk 0:01:52]} 21. Bc1 {[%clk 0:02:16]}  Qc7 {[%clk 0:01:40]} 22. Nb5 {[%clk 0:02:15]}  Nxb2 {[%clk 0:01:27]} 23. Nxc7 {[%clk 0:01:53]}  Nxd3 {[%clk 0:01:27]} 24. Bxd3 {[%clk 0:01:50]}  Rxc7 {[%clk 0:01:27]} 25. h4 {[%clk 0:01:49]}  h5 {[%clk 0:01:22]} 26. Ng5 {[%clk 0:01:44]}  Rfc8 {[%clk 0:01:17]} 27. Bd2 {[%clk 0:01:44]}  Bxa3 {[%clk 0:01:14]} 28. f3 {[%clk 0:01:42]}  Bc1 {[%clk 0:01:09]} 29. Bb4 {[%clk 0:01:40]}  Bb2 {[%clk 0:01:07]} 30. Bd6 {[%clk 0:01:37]}  Bxd4+ {[%clk 0:01:07]} 31. Kh2 {[%clk 0:01:37]}  Rc1 {[%clk 0:01:01]} 32. Re2 {[%clk 0:01:37]}  Nc5 {[%clk 0:00:57]} 33. Bb5 {[%clk 0:01:34]}  a6 {[%clk 0:00:52]} 34. Bxc5 {[%clk 0:01:34]}  R8xc5 {[%clk 0:00:47]} 35. Bxa6 {[%clk 0:01:32]}  R5c2 {[%clk 0:00:47]} 36. Kg3 {[%clk 0:01:31]}  Rxe2 {[%clk 0:00:46]} 37. Bxe2 {[%clk 0:01:31]}  Bxe5+ {[%clk 0:00:47]} 38. f4 {[%clk 0:01:31]}  Bd6 {[%clk 0:00:46]} 39. Kf3 {[%clk 0:01:31]}  Rc3+ {[%clk 0:00:45]} 40. Kf2 {[%clk 0:01:30]}  Bxf4 {[%clk 0:00:45]} 41. Nf3 {[%clk 0:01:30]}  Be3+ {[%clk 0:00:44]} 42. Kg3 {[%clk 0:01:30]}  f6 {[%clk 0:00:43]} 43. Bb5 {[%clk 0:01:30]}  Rb3 {[%clk 0:00:43]} 44. Bd7 {[%clk 0:01:30]}  Kf7 {[%clk 0:00:43]} 45. Bc6 {[%clk 0:01:28]}  b5 {[%clk 0:00:43]} 46. Kh2 {[%clk 0:01:26]}  b4 {[%clk 0:00:43]} 47. Ne1 {[%clk 0:01:26]}  Rb1 {[%clk 0:00:43]} 48. Nc2 {[%clk 0:01:26]}  Bf4+ {[%clk 0:00:43]} 49. g3 {[%clk 0:01:25]}  Rb2 {[%clk 0:00:43]} 50. Kh3 {[%clk 0:01:22]}  Rxc2 {[%clk 0:00:43]} 51. Bb5 {[%clk 0:01:22]} 0-1


[Site "https://www.chess.com"]

[Event "Titled Tuesday Blitz May 10 Late 2022"]
[White "Qashashvili, Alexandre"]
[Black "Maksimovic, Bojan"]
[WhiteFideId "13600842"]
[BlackFideId "14408120"]
[WhiteElo "2316"]
[BlackElo "2448"]
[Result "0-1"]
[Round "02"]
[TimeControl "180+1"]
[Date "2022.05.11"]
[WhiteClock "0:00:02"]
[BlackClock "0:00:11"]

1. e4 {[%clk 0:03:00]}  c5 {[%clk 0:02:55]} 2. Nc3 {[%clk 0:03:00]}  Nc6 {[%clk 0:02:55]} 3. Nf3 {[%clk 0:03:00]}  g6 {[%clk 0:02:55]} 4. d3 {[%clk 0:03:00]}  Bg7 {[%clk 0:02:53]} 5. Be3 {[%clk 0:03:00]}  d6 {[%clk 0:02:53]} 6. Qd2 {[%clk 0:03:00]}  e5 {[%clk 0:02:52]} 7. Be2 {[%clk 0:02:59]}  h6 {[%clk 0:02:52]} 8. h3 {[%clk 0:02:59]}  Nge7 {[%clk 0:02:53]} 9. O-O {[%clk 0:02:58]}  f5 {[%clk 0:02:53]} 10. exf5 {[%clk 0:02:58]}  gxf5 {[%clk 0:02:54]} 11. Nh4 {[%clk 0:02:48]}  f4 {[%clk 0:02:46]} 12. Bh5+ {[%clk 0:02:47]}  Kd7 {[%clk 0:02:46]} 13. Bxf4 {[%clk 0:02:47]}  exf4 {[%clk 0:02:46]} 14. Qxf4 {[%clk 0:02:48]}  Be5 {[%clk 0:02:37]} 15. Qf7 {[%clk 0:02:33]}  Rf8 {[%clk 0:02:25]} 16. Qh7 {[%clk 0:02:26]}  Kc7 {[%clk 0:02:25]} 17. Ng6 {[%clk 0:02:14]}  Bd7 {[%clk 0:01:25]} 18. Nxf8 {[%clk 0:01:19]}  Qxf8 {[%clk 0:01:26]} 19. Nb5+ {[%clk 0:01:09]}  Kb6 {[%clk 0:01:21]} 20. f4 {[%clk 0:01:05]}  Bd4+ {[%clk 0:00:38]} 21. Nxd4 {[%clk 0:01:01]}  Nxd4 {[%clk 0:00:39]} 22. Rae1 {[%clk 0:00:55]}  Ndc6 {[%clk 0:00:40]} 23. Bg4 {[%clk 0:00:41]}  Bxg4 {[%clk 0:00:35]} 24. hxg4 {[%clk 0:00:41]}  Qf6 {[%clk 0:00:33]} 25. Qe4 {[%clk 0:00:38]}  Rg8 {[%clk 0:00:29]} 26. f5 {[%clk 0:00:29]}  Ne5 {[%clk 0:00:20]} 27. Rf4 {[%clk 0:00:17]}  Kc7 {[%clk 0:00:16]} 28. c3 {[%clk 0:00:12]}  N7c6 {[%clk 0:00:16]} 29. d4 {[%clk 0:00:11]}  Nd7 {[%clk 0:00:17]} 30. dxc5 {[%clk 0:00:11]}  Nxc5 {[%clk 0:00:16]} 31. Qd5 {[%clk 0:00:09]}  Rg7 {[%clk 0:00:14]} 32. b4 {[%clk 0:00:08]}  Nd7 {[%clk 0:00:13]} 33. b5 {[%clk 0:00:07]}  Nce5 {[%clk 0:00:14]} 34. c4 {[%clk 0:00:06]}  Rxg4 {[%clk 0:00:10]} 35. Rxg4 {[%clk 0:00:05]}  Nxg4 {[%clk 0:00:11]} 36. Re6 {[%clk 0:00:03]}  Qa1+ {[%clk 0:00:11]} 37. Re1 {[%clk 0:00:02]}  Qxe1# {[%clk 0:00:11]} 0-1


[Site "https://www.chess.com"]

[Event "Titled Tuesday Blitz May 10 Late 2022"]
[White "Radovanovic, Mihajlo"]
[Black "Blackman, Justin"]
[WhiteFideId "940313"]
[BlackFideId "11100516"]
[WhiteElo "2394"]
[BlackElo "2112"]
[Result "1-0"]
[Round "02"]
[TimeControl "180+1"]
[Date "2022.05.11"]
[WhiteClock "0:01:39"]
[BlackClock "0:00:52"]

1. e4 {[%clk 0:03:00]}  e5 {[%clk 0:02:54]} 2. Nf3 {[%clk 0:03:00]}  Nc6 {[%clk 0:02:52]} 3. Bb5 {[%clk 0:03:00]}  Nge7 {[%clk 0:02:52]} 4. O-O {[%clk 0:02:58]}  d6 {[%clk 0:02:51]} 5. d4 {[%clk 0:02:57]}  exd4 {[%clk 0:02:51]} 6. Nxd4 {[%clk 0:02:57]}  Bd7 {[%clk 0:02:51]} 7. Nc3 {[%clk 0:02:55]}  Ng6 {[%clk 0:02:50]} 8. Bxc6 {[%clk 0:02:46]}  bxc6 {[%clk 0:02:50]} 9. Nf5 {[%clk 0:02:45]}  Qf6 {[%clk 0:02:24]} 10. Ng3 {[%clk 0:02:38]}  h5 {[%clk 0:02:19]} 11. Re1 {[%clk 0:02:34]}  h4 {[%clk 0:02:02]} 12. Nf5 {[%clk 0:02:25]}  Ne7 {[%clk 0:01:48]} 13. Ne3 {[%clk 0:02:10]}  g6 {[%clk 0:01:30]} 14. h3 {[%clk 0:02:09]}  Bg7 {[%clk 0:01:26]} 15. Ng4 {[%clk 0:02:09]}  Qe6 {[%clk 0:01:25]} 16. Bg5 {[%clk 0:02:03]}  f6 {[%clk 0:01:20]} 17. Bf4 {[%clk 0:01:59]}  Rb8 {[%clk 0:01:19]} 18. Qd3 {[%clk 0:01:48]}  Kf7 {[%clk 0:01:15]} 19. b3 {[%clk 0:01:47]}  Rh5 {[%clk 0:01:07]} 20. Rad1 {[%clk 0:01:47]}  Bc8 {[%clk 0:01:03]} 21. Ne2 {[%clk 0:01:44]}  c5 {[%clk 0:01:00]} 22. Nc3 {[%clk 0:01:44]}  Nc6 {[%clk 0:00:53]} 23. Nd5 {[%clk 0:01:39]}  Ra8 {[%clk 0:00:52]} 24. Nxc7 {[%clk 0:01:39]} 1-0


[Site "https://www.chess.com"]

[Event "Titled Tuesday Blitz May 10 Late 2022"]
[White "RestartingChess"]
[Black "Winkels, Marcel"]
[BlackFideId "1003887"]
[WhiteElo "2473"]
[BlackElo "1900"]
[Result "1-0"]
[Round "02"]
[TimeControl "180+1"]
[Date "2022.05.11"]
[WhiteClock "0:01:15"]
[BlackClock "0:00:16"]

1. e4 {[%clk 0:03:00]}  c5 {[%clk 0:02:57]} 2. Nf3 {[%clk 0:02:59]}  d6 {[%clk 0:02:58]} 3. Bb5+ {[%clk 0:02:59]}  Nd7 {[%clk 0:02:56]} 4. c4 {[%clk 0:03:00]}  Nf6 {[%clk 0:02:53]} 5. Nc3 {[%clk 0:03:00]}  e6 {[%clk 0:02:53]} 6. d3 {[%clk 0:03:01]}  Be7 {[%clk 0:02:52]} 7. Bf4 {[%clk 0:03:01]}  O-O {[%clk 0:02:52]} 8. O-O {[%clk 0:03:01]}  a6 {[%clk 0:02:51]} 9. Ba4 {[%clk 0:03:01]}  b6 {[%clk 0:02:48]} 10. Bc2 {[%clk 0:03:01]}  Bb7 {[%clk 0:02:47]} 11. a4 {[%clk 0:03:02]}  Qc7 {[%clk 0:02:30]} 12. b3 {[%clk 0:02:58]}  Ne5 {[%clk 0:02:26]} 13. Bxe5 {[%clk 0:02:56]}  dxe5 {[%clk 0:02:26]} 14. Qe2 {[%clk 0:02:54]}  Rad8 {[%clk 0:02:22]} 15. h3 {[%clk 0:02:54]}  Nd7 {[%clk 0:02:16]} 16. Rfe1 {[%clk 0:02:52]}  Bd6 {[%clk 0:02:08]} 17. Ra2 {[%clk 0:02:46]}  f5 {[%clk 0:02:07]} 18. a5 {[%clk 0:02:47]}  bxa5 {[%clk 0:01:56]} 19. Rea1 {[%clk 0:02:46]}  Nf6 {[%clk 0:01:52]} 20. Rxa5 {[%clk 0:02:41]}  Kh8 {[%clk 0:01:34]} 21. Ng5 {[%clk 0:02:40]}  Qe7 {[%clk 0:01:29]} 22. R5a2 {[%clk 0:02:15]}  h6 {[%clk 0:01:27]} 23. Nf3 {[%clk 0:02:15]}  g5 {[%clk 0:01:26]} 24. exf5 {[%clk 0:02:06]}  exf5 {[%clk 0:01:25]} 25. Re1 {[%clk 0:02:07]}  Rde8 {[%clk 0:01:17]} 26. Raa1 {[%clk 0:01:48]}  g4 {[%clk 0:01:08]} 27. Nh4 {[%clk 0:01:48]}  Qh7 {[%clk 0:00:53]} 28. d4 {[%clk 0:01:41]}  e4 {[%clk 0:00:52]} 29. d5 {[%clk 0:01:38]}  Bc8 {[%clk 0:00:50]} 30. hxg4 {[%clk 0:01:35]}  Be5 {[%clk 0:00:47]} 31. gxf5 {[%clk 0:01:34]}  Bxc3 {[%clk 0:00:40]} 32. Ng6+ {[%clk 0:01:34]}  Kg7 {[%clk 0:00:39]} 33. Nxf8 {[%clk 0:01:28]}  Rxf8 {[%clk 0:00:38]} 34. Qe3 {[%clk 0:01:29]}  Bxa1 {[%clk 0:00:33]} 35. Rxa1 {[%clk 0:01:26]}  Qxf5 {[%clk 0:00:31]} 36. Qxc5 {[%clk 0:01:26]}  Ng4 {[%clk 0:00:28]} 37. Rf1 {[%clk 0:01:17]}  Qh5 {[%clk 0:00:25]} 38. Qc7+ {[%clk 0:01:17]}  Kh8 {[%clk 0:00:22]} 39. Bxe4 {[%clk 0:01:15]}  Rd8 {[%clk 0:00:16]} 40. Qh7# {[%clk 0:01:15]} 1-0


[Site "https://www.chess.com"]

[Event "Titled Tuesday Blitz May 10 Late 2022"]
[White "Riehle, Marco"]
[Black "Zhou, Qiyu"]
[WhiteFideId "12904392"]
[BlackFideId "505161"]
[WhiteElo "2462"]
[BlackElo "1925"]
[Result "1-0"]
[Round "02"]
[TimeControl "180+1"]
[Date "2022.05.11"]
[WhiteClock "0:01:48"]
[BlackClock "0:00:15"]

1. e4 {[%clk 0:03:00]}  e5 {[%clk 0:02:56]} 2. Nf3 {[%clk 0:03:00]}  Nc6 {[%clk 0:02:56]} 3. Bc4 {[%clk 0:03:01]}  Bc5 {[%clk 0:02:56]} 4. c3 {[%clk 0:03:01]}  Nf6 {[%clk 0:02:56]} 5. d4 {[%clk 0:03:01]}  exd4 {[%clk 0:02:57]} 6. cxd4 {[%clk 0:03:02]}  Bb4+ {[%clk 0:02:58]} 7. Kf1 {[%clk 0:03:01]}  Nxe4 {[%clk 0:02:43]} 8. d5 {[%clk 0:03:00]}  Ne7 {[%clk 0:02:37]} 9. Qd4 {[%clk 0:03:01]}  Nf6 {[%clk 0:02:30]} 10. Bg5 {[%clk 0:02:59]}  c5 {[%clk 0:02:12]} 11. Qe3 {[%clk 0:02:50]}  O-O {[%clk 0:01:57]} 12. Bxf6 {[%clk 0:02:48]}  gxf6 {[%clk 0:01:58]} 13. a3 {[%clk 0:02:41]}  Ba5 {[%clk 0:01:57]} 14. Nc3 {[%clk 0:02:41]}  Bxc3 {[%clk 0:01:36]} 15. Qxc3 {[%clk 0:02:34]}  Ng6 {[%clk 0:01:33]} 16. h4 {[%clk 0:02:33]}  d6 {[%clk 0:01:31]} 17. h5 {[%clk 0:02:32]}  Ne5 {[%clk 0:01:24]} 18. Re1 {[%clk 0:02:32]}  Bf5 {[%clk 0:01:17]} 19. h6 {[%clk 0:02:17]}  Kh8 {[%clk 0:01:14]} 20. Nh4 {[%clk 0:02:15]}  Qd7 {[%clk 0:01:06]} 21. f4 {[%clk 0:02:15]}  Ng4 {[%clk 0:01:06]} 22. Be2 {[%clk 0:02:12]}  Rae8 {[%clk 0:00:48]} 23. Bxg4 {[%clk 0:01:55]}  Rxe1+ {[%clk 0:00:48]} 24. Kf2 {[%clk 0:01:51]}  Re2+ {[%clk 0:00:22]} 25. Bxe2 {[%clk 0:01:48]}  Qd8 {[%clk 0:00:15]} 1-0


[Site "https://www.chess.com"]

[Event "Titled Tuesday Blitz May 10 Late 2022"]
[White "Romero Ruscalleda, Josep"]
[Black "Bilych, Olexiy"]
[WhiteFideId "2231859"]
[BlackFideId "14156504"]
[WhiteElo "2307"]
[BlackElo "2176"]
[Result "0-1"]
[Round "02"]
[TimeControl "180+1"]
[Date "2022.05.11"]
[WhiteClock "0:00:09"]
[BlackClock "0:01:01"]

1. e4 {[%clk 0:03:00]}  e5 {[%clk 0:02:57]} 2. Nf3 {[%clk 0:03:00]}  Nc6 {[%clk 0:02:56]} 3. Bc4 {[%clk 0:03:00]}  Bc5 {[%clk 0:02:55]} 4. c3 {[%clk 0:03:00]}  Nf6 {[%clk 0:02:56]} 5. b4 {[%clk 0:03:00]}  Bb6 {[%clk 0:02:21]} 6. d3 {[%clk 0:03:00]}  O-O {[%clk 0:02:12]} 7. O-O {[%clk 0:02:58]}  d6 {[%clk 0:02:09]} 8. Bb3 {[%clk 0:02:47]}  h6 {[%clk 0:02:07]} 9. Nbd2 {[%clk 0:02:46]}  Be6 {[%clk 0:02:01]} 10. Nc4 {[%clk 0:02:45]}  Ne7 {[%clk 0:01:53]} 11. Nxb6 {[%clk 0:02:35]}  Bxb3 {[%clk 0:01:53]} 12. axb3 {[%clk 0:02:28]}  axb6 {[%clk 0:01:54]} 13. Be3 {[%clk 0:02:25]}  Rxa1 {[%clk 0:01:49]} 14. Qxa1 {[%clk 0:02:24]}  Qa8 {[%clk 0:01:49]} 15. Qb2 {[%clk 0:02:24]}  Qa6 {[%clk 0:01:50]} 16. c4 {[%clk 0:02:21]}  Ra8 {[%clk 0:01:50]} 17. h3 {[%clk 0:02:10]}  Qa3 {[%clk 0:01:48]} 18. Qxa3 {[%clk 0:02:05]}  Rxa3 {[%clk 0:01:48]} 19. Rb1 {[%clk 0:02:02]}  Nd7 {[%clk 0:01:46]} 20. Nd2 {[%clk 0:02:00]}  Nc6 {[%clk 0:01:40]} 21. b5 {[%clk 0:01:54]}  Nb4 {[%clk 0:01:39]} 22. Kf1 {[%clk 0:01:42]}  Nxd3 {[%clk 0:01:38]} 23. Ke2 {[%clk 0:01:42]}  N3c5 {[%clk 0:01:33]} 24. f4 {[%clk 0:01:38]}  exf4 {[%clk 0:01:31]} 25. Bxf4 {[%clk 0:01:38]}  Ne6 {[%clk 0:01:28]} 26. Be3 {[%clk 0:01:38]}  Ne5 {[%clk 0:01:27]} 27. g4 {[%clk 0:01:36]}  Kh7 {[%clk 0:01:23]} 28. Rf1 {[%clk 0:01:32]}  Ra2 {[%clk 0:01:21]} 29. Rf5 {[%clk 0:01:25]}  g6 {[%clk 0:01:18]} 30. Rf6 {[%clk 0:01:22]}  Kg7 {[%clk 0:01:18]} 31. Rf1 {[%clk 0:01:19]}  Ng5 {[%clk 0:01:18]} 32. Bxg5 {[%clk 0:01:17]}  hxg5 {[%clk 0:01:19]} 33. Ke3 {[%clk 0:01:13]}  Rc2 {[%clk 0:01:16]} 34. Rh1 {[%clk 0:00:52]}  Rc3+ {[%clk 0:01:15]} 35. Ke2 {[%clk 0:00:52]}  Nd3 {[%clk 0:01:11]} 36. Ra1 {[%clk 0:00:47]}  Nf4+ {[%clk 0:01:10]} 37. Kd1 {[%clk 0:00:47]}  Rxh3 {[%clk 0:01:06]} 38. Ra7 {[%clk 0:00:46]}  Rg3 {[%clk 0:01:06]} 39. Rxb7 {[%clk 0:00:46]}  Ne6 {[%clk 0:01:06]} 40. b4 {[%clk 0:00:29]}  Rxg4 {[%clk 0:01:06]} 41. c5 {[%clk 0:00:24]}  dxc5 {[%clk 0:01:04]} 42. bxc5 {[%clk 0:00:24]}  bxc5 {[%clk 0:01:03]} 43. Rxc7 {[%clk 0:00:09]}  Nxc7 {[%clk 0:01:01]} 44. b6 {[%clk 0:00:09]}  Na6 {[%clk 0:01:01]} 0-1


[Site "https://www.chess.com"]

[Event "Titled Tuesday Blitz May 10 Late 2022"]
[White "Rorrer, Grayson"]
[Black "Mortazavi, Ali"]
[WhiteFideId "30944996"]
[BlackFideId "401323"]
[WhiteElo "2765"]
[BlackElo "2445"]
[Result "0-1"]
[Round "02"]
[TimeControl "180+1"]
[Date "2022.05.11"]
[WhiteClock "0:00:03"]
[BlackClock "0:00:11"]

1. e4 {[%clk 0:03:00]}  c6 {[%clk 0:02:59]} 2. d4 {[%clk 0:03:00]}  d5 {[%clk 0:03:00]} 3. exd5 {[%clk 0:03:00]}  cxd5 {[%clk 0:03:00]} 4. Bd3 {[%clk 0:03:00]}  Nc6 {[%clk 0:03:00]} 5. c3 {[%clk 0:03:00]}  Qc7 {[%clk 0:03:00]} 6. h3 {[%clk 0:03:00]}  g6 {[%clk 0:02:49]} 7. Nf3 {[%clk 0:03:00]}  Bf5 {[%clk 0:02:47]} 8. O-O {[%clk 0:03:00]}  Nf6 {[%clk 0:02:48]} 9. Re1 {[%clk 0:02:57]}  e6 {[%clk 0:02:42]} 10. Bg5 {[%clk 0:02:48]}  Bg7 {[%clk 0:02:25]} 11. Na3 {[%clk 0:02:36]}  Bxd3 {[%clk 0:02:10]} 12. Qxd3 {[%clk 0:02:37]}  O-O {[%clk 0:02:10]} 13. Qe3 {[%clk 0:02:18]}  Rfe8 {[%clk 0:02:05]} 14. Nb5 {[%clk 0:02:07]}  Qd7 {[%clk 0:01:50]} 15. Qf4 {[%clk 0:01:53]}  Ne4 {[%clk 0:01:47]} 16. Bh4 {[%clk 0:01:44]}  e5 {[%clk 0:01:25]} 17. dxe5 {[%clk 0:01:36]}  Nxe5 {[%clk 0:01:23]} 18. Nbd4 {[%clk 0:01:21]}  Nd3 {[%clk 0:01:23]} 19. Qe3 {[%clk 0:01:13]}  Nxe1 {[%clk 0:01:20]} 20. Rxe1 {[%clk 0:01:14]}  h6 {[%clk 0:01:11]} 21. Qc1 {[%clk 0:01:12]}  Rac8 {[%clk 0:01:09]} 22. Qd1 {[%clk 0:01:12]}  Nc5 {[%clk 0:01:04]} 23. Nc2 {[%clk 0:01:12]}  Rxe1+ {[%clk 0:01:03]} 24. Nfxe1 {[%clk 0:01:12]}  Re8 {[%clk 0:01:04]} 25. Ne3 {[%clk 0:01:11]}  d4 {[%clk 0:01:04]} 26. cxd4 {[%clk 0:01:10]}  Qxd4 {[%clk 0:01:03]} 27. Qc2 {[%clk 0:01:07]}  Ne4 {[%clk 0:00:57]} 28. Nf3 {[%clk 0:00:57]}  Qc5 {[%clk 0:00:50]} 29. Qa4 {[%clk 0:00:56]}  b5 {[%clk 0:00:48]} 30. Qd1 {[%clk 0:00:49]}  g5 {[%clk 0:00:48]} 31. Qd7 {[%clk 0:00:43]}  Re7 {[%clk 0:00:37]} 32. Qd8+ {[%clk 0:00:43]}  Kh7 {[%clk 0:00:37]} 33. Nd5 {[%clk 0:00:18]}  Re6 {[%clk 0:00:29]} 34. Qd7 {[%clk 0:00:15]}  Rd6 {[%clk 0:00:24]} 35. Qf5+ {[%clk 0:00:15]}  Kg8 {[%clk 0:00:22]} 36. Ne7+ {[%clk 0:00:16]}  Kf8 {[%clk 0:00:22]} 37. Qxe4 {[%clk 0:00:17]}  Rd1+ {[%clk 0:00:20]} 38. Kh2 {[%clk 0:00:16]}  Qxe7 {[%clk 0:00:21]} 39. Qc2 {[%clk 0:00:10]}  Rd8 {[%clk 0:00:16]} 40. Bg3 {[%clk 0:00:10]}  Kg8 {[%clk 0:00:16]} 41. Qb3 {[%clk 0:00:09]}  a6 {[%clk 0:00:16]} 42. a4 {[%clk 0:00:10]}  bxa4 {[%clk 0:00:16]} 43. Qxa4 {[%clk 0:00:10]}  Qe6 {[%clk 0:00:16]} 44. b3 {[%clk 0:00:10]}  Bf6 {[%clk 0:00:16]} 45. Qb4 {[%clk 0:00:10]}  Kg7 {[%clk 0:00:16]} 46. Qb7 {[%clk 0:00:07]}  Rd7 {[%clk 0:00:16]} 47. Qb4 {[%clk 0:00:07]}  h5 {[%clk 0:00:16]} 48. h4 {[%clk 0:00:05]}  gxh4 {[%clk 0:00:14]} 49. Nxh4 {[%clk 0:00:05]}  Rd4 {[%clk 0:00:12]} 50. Qb8 {[%clk 0:00:03]}  Rxh4+ {[%clk 0:00:10]} 51. Bxh4 {[%clk 0:00:03]}  Be5+ {[%clk 0:00:11]} 0-1


[Site "https://www.chess.com"]